bitfinex/quotes_SOLUSD_20260119
["timestamp","ask_amount","ask_price","bid_price","bid_amount"]
[1768840440235,9.23572987,133.89,133.86,4.71777883]
[1768840440535,9.23572987,133.89,133.86,1.71534744]
[1768840441040,1.76470986,133.88,133.85,1.71534744]
[1768840442236,4.76714125,133.88,133.85,1.71534744]
[1768840442613,7.46993351,133.87,133.85,1.71534744]
[1768840445212,9.23256753,133.87,133.84,1.71534744]
[1768840446535,7.46993351,133.87,133.84,1.71534744]
[1768840448834,4.76357028,133.85,133.82,1.71534744]
[1768840449336,12.23507933,133.85,133.82,1.71534744]
[1768840452744,9.23264794,133.85,133.82,1.71534744]
[1768840453523,9.17264789,133.85,133.82,1.71534744]
[1768840456049,12.17507928,133.85,133.82,1.71534744]
[1768840460035,12.11507928,133.85,133.82,1.71534744]
[1768840462460,3.00243139,133.84,133.82,1.71534744]
[1768840462640,4.6372717,133.84,133.81,1.71534744]
[1768840462953,1.63484031,133.84,133.81,1.71534744]
[1768840463142,4.6372717,133.84,133.81,1.71534744]
[1768840464363,10.47407546,133.84,133.81,1.71534744]
[1768840468164,7.47164407,133.84,133.81,1.71534744]
[1768840470660,10.47407546,133.84,133.81,1.71534744]
[1768840470865,12.10515238,133.84,133.81,1.71534744]
[1768840472262,10.47407546,133.84,133.81,1.71534744]
[1768840472838,10.4747692,133.84,133.81,1.71534744]
[1768840473347,7.47164407,133.84,133.81,1.71534744]
[1768840473741,7.41164406,133.84,133.81,1.71534744]
[1768840475762,7.35164405,133.84,133.82,1.77787372]
[1768840480364,7.29164404,133.84,133.82,1.77787372]
[1768840481368,9.09835888,133.86,133.82,1.77787372]
[1768840481553,12.10148401,133.86,133.82,1.77787372]
[1768840482061,1.62717039,133.85,133.82,1.77787372]
[1768840482867,12.10147325,133.85,133.82,1.77787372]
[1768840483761,9.09834812,133.85,133.82,1.77787372]
[1768840483969,12.10147325,133.85,133.82,1.77787372]
[1768840486576,7.47117773,133.85,133.82,1.77787372]
[1768840486758,10.47430286,133.85,133.82,1.77787372]
[1768840487871,12.09999875,133.85,133.82,1.77787372]
[1768840488658,9.09687362,133.85,133.82,1.77787372]
[1768840489170,9.0958675,133.86,133.82,1.77787372]
[1768840489471,12.09899263,133.86,133.82,1.77787372]
[1768840492276,7.47019852,133.87,133.83,1.7522505]
[1768840492570,7.47019852,133.87,133.84,1.7522505]
[1768840493471,9.09396809,133.87,133.84,1.7522505]
[1768840499882,9.09162485,133.88,133.85,1.79352823]
[1768840500672,12.09404291,133.89,133.85,1.79352823]
[1768840500873,1.62199289,133.9,133.87,1.79352823]
[1768840501067,9.1896026,133.91,133.87,3.00312513]
[1768840501785,12.19272773,133.91,133.86,3.00312513]
[1768840502081,12.19272773,133.91,133.84,16.36]
[1768840502082,1.6515111,133.88,133.84,16.36]
[1768840502279,4.65463623,133.87,133.85,30.0]
[1768840502483,1.6515111,133.87,133.85,30.0]
[1768840502986,4.65463623,133.87,133.85,30.0]
[1768840503282,1.6515111,133.87,133.84,1.79352823]
[1768840504390,1.65104032,133.86,133.83,1.79352823]
[1768840504564,1.65104032,133.85,133.82,9.26609291]
[1768840504766,4.65416545,133.86,133.83,1.79352823]
[1768840506386,1.65058029,133.85,133.82,1.79352823]
[1768840506601,4.65370542,133.85,133.82,1.79352823]
[1768840506762,1.65058029,133.85,133.82,1.79352823]
[1768840506961,4.65370542,133.85,133.82,1.79352823]
[1768840507281,4.65370542,133.85,133.82,9.26620347]
[1768840508872,1.65058029,133.85,133.82,9.26620347]
[1768840514193,1.65058029,133.85,133.82,12.2693286]
[1768840515377,1.65058029,133.85,133.82,9.26620347]
[1768840515685,1.65058029,133.85,133.82,9.23620347]
[1768840515989,1.65058029,133.85,133.82,9.20620347]
[1768840517203,4.71123125,133.86,133.82,7.47267524]
[1768840517482,1.70810612,133.85,133.82,7.47267524]
[1768840517891,1.70810612,133.85,133.82,9.26620347]
[1768840519187,1.70768908,133.86,133.83,1.79352823]
[1768840519388,1.70768908,133.86,133.83,1.76352823]
[1768840520068,4.71081421,133.86,133.83,1.76352823]
[1768840521490,4.71081421,133.86,133.83,9.23525299]
[1768840522674,1.70768908,133.86,133.83,9.23525299]
[1768840523993,4.73969978,133.87,133.84,9.16029787]
[1768840524570,1.73657465,133.87,133.84,9.16029787]
[1768840525472,1.73640719,133.9,133.87,1.68882764]
[1768840525672,1.83640719,133.91,133.88,1.68882764]
[1768840525883,0.1,133.91,133.89,1.68882764]
[1768840526598,1.83624166,133.91,133.88,1.68882764]
[1768840526895,1.83624166,133.91,133.88,4.69195277]
[1768840527598,1.83624166,133.91,133.89,7.46881768]
[1768840527889,0.1,133.91,133.9,1.68882764]
[1768840528081,0.1,133.91,133.9,1.65882764]
[1768840529282,0.1,133.93,133.9,3.00312513]
[1768840529495,0.1,133.93,133.91,7.46770218]
[1768840530083,0.1,133.93,133.91,9.15652982]
[1768840530486,1.85201411,133.94,133.91,9.15652982]
[1768840530487,0.1,133.94,133.92,1.68882764]
[1768840531398,0.1,133.94,133.91,7.46770218]
[1768840531591,1.85201411,133.94,133.91,9.15652982]
[1768840534696,3.10312513,133.94,133.91,7.46770218]
[1768840534902,1.75201411,133.93,133.9,9.15688135]
[1768840537412,4.75090785,133.93,133.9,9.15688135]
[1768840537714,1.75201411,133.93,133.9,9.15688135]
[1768840537902,4.85090785,133.94,133.91,1.68882764]
[1768840538082,4.85090785,133.94,133.91,1.65882764]
[1768840541405,1.67926947,133.91,133.88,1.78346434]
[1768840541586,4.67816321,133.9,133.87,9.25313397]
[1768840541884,4.61816322,133.9,133.88,30.0]
[1768840542109,2.99889374,133.9,133.88,39.25271896]
[1768840542309,2.99889374,133.91,133.88,9.25271896]
[1768840543012,2.99889374,133.92,133.88,9.25271896]
[1768840543800,1.67926947,133.91,133.88,9.25271896]
[1768840544911,4.67816321,133.91,133.88,9.25271896]
[1768840550510,4.67816321,133.91,133.88,1.78346434]
[1768840550511,2.99889374,133.9,133.88,1.78346434]
[1768840551691,4.67816321,133.92,133.89,1.78346434]
[1768840551909,2.99889374,133.92,133.89,1.78346434]
[1768840552116,4.67816321,133.93,133.89,1.78346434]
[1768840552724,4.67816321,133.93,133.9,7.46825989]
[1768840553791,4.67816321,133.93,133.89,9.25205395]
[1768840554398,4.67816321,133.93,133.89,7.46858961]
[1768840554590,4.67816321,133.93,133.89,9.16941042]
[1768840555092,1.67926947,133.93,133.9,1.70082081]
[1768840555397,12.14484584,133.93,133.9,1.70082081]
[1768840556918,2.99889374,133.92,133.9,1.70082081]
[1768840557619,2.99889374,133.92,133.89,9.16960028]
[1768840557620,4.66687474,133.92,133.89,9.16960028]
[1768840557824,4.66687474,133.92,133.89,1.70082081]
[1768840560217,12.1344171,133.92,133.89,1.70082081]
[1768840563110,2.99889374,133.91,133.89,1.70082081]
[1768840563311,12.1344171,133.92,133.89,1.70082081]
[1768840563622,4.66687474,133.92,133.89,1.70082081]
[1768840566405,4.66687474,133.92,133.89,9.16959711]
[1768840566923,4.66687474,133.92,133.89,1.70082081]
[1768840567922,7.46688281,133.93,133.9,1.70082081]
[1768840567923,12.13375755,133.93,133.9,1.70082081]
[1768840568222,4.66687474,133.93,133.9,1.67082081]
[1768840568627,1.667981,133.93,133.9,1.67082081]
[1768840569316,4.66687474,133.93,133.9,1.67082081]
[1768840569513,4.66687474,133.93,133.9,1.64082081]
[1768840574424,12.13346906,133.93,133.9,1.64082081]
[1768840574824,4.66687474,133.93,133.9,1.64082081]
[1768840576117,12.13346177,133.93,133.9,1.64082081]
[1768840576313,4.66687474,133.93,133.9,1.64082081]
[1768840576833,1.667981,133.93,133.9,1.64082081]
[1768840578134,4.66687474,133.93,133.9,1.64082081]
[1768840578325,12.13353609,133.93,133.9,1.64082081]
[1768840578712,4.66687474,133.92,133.88,61.5]
[1768840578914,4.66687474,133.92,133.89,1.70082081]
[1768840579354,1.667981,133.92,133.89,1.70082081]
[1768840579522,4.66687474,133.92,133.89,1.70082081]
[1768840585537,4.66687474,133.92,133.89,9.16945819]
[1768840585538,1.667981,133.92,133.89,9.16945819]
[1768840586858,1.667981,133.92,133.89,1.70082081]
[1768840590349,12.13404291,133.92,133.89,1.70082081]
[1768840590530,9.13514917,133.92,133.89,1.67082081]
[1768840590738,12.13404291,133.92,133.89,1.67082081]
[1768840591548,12.13404291,133.92,133.89,1.64082081]
[1768840591862,1.675715,133.9,133.87,68.96967763]
[1768840592035,4.67460874,133.91,133.87,68.96967763]
[1768840592752,7.46716817,133.92,133.87,61.5]
[1768840593055,4.67460874,133.89,133.87,61.5]
[1768840593434,2.99889374,133.88,133.87,61.5]
[1768840593749,4.67460874,133.89,133.86,9.28745533]
[1768840595154,4.67460874,133.88,133.85,9.28794798]
[1768840595529,4.67460874,133.89,133.86,9.2875113]
[1768840596845,1.675715,133.89,133.86,9.2875113]
[1768840597351,7.46795026,133.91,133.87,1.81702277]
[1768840597554,1.675715,133.91,133.88,1.78702277]
[1768840597855,1.675715,133.91,133.88,3.0008711]
[1768840599659,1.675715,133.91,133.88,12.28721669]
[1768840605558,1.70169326,133.93,133.89,4.73784656]
[1768840605763,6.45547235,133.92,133.89,4.73784656]
[1768840605963,1.70169326,133.92,133.89,4.73784656]
[1768840606140,1.70169326,133.92,133.9,3.0008711]
[1768840606340,1.80169326,133.94,133.91,1.73697546]
[1768840606638,0.1,133.94,133.92,4.73784656]
[1768840606855,0.1,133.94,133.92,4.70784656]
[1768840607343,1.80169326,133.94,133.91,3.0008711]
[1768840607537,1.80169326,133.94,133.91,10.4683096]
[1768840608357,4.70937604,133.93,133.91,7.4674385]
[1768840608556,1.80169326,133.94,133.91,10.4683096]
[1768840609251,1.80169326,133.94,133.91,12.20528506]
[1768840610343,1.80169326,133.94,133.91,9.20441396]
[1768840610543,1.80169326,133.94,133.91,12.20528506]
[1768840612346,0.1,133.94,133.92,4.73784656]
[1768840614370,0.1,133.94,133.92,12.20467298]
[1768840617566,0.1,133.94,133.93,1.7512087]
[1768840617745,0.1,133.94,133.92,9.21803512]
[1768840617746,4.8070213,133.94,133.92,9.21803512]
[1768840617948,1.78953935,133.94,133.92,12.21890622]
[1768840618166,0.1,133.94,133.92,12.21890622]
[1768840619954,0.1,133.96,133.94,1.7512087]
[1768840620160,0.268364,133.97,133.95,3.0008711]
[1768840620366,0.268364,133.97,133.95,2.9708711]
[1768840621067,1.95790335,133.97,133.95,2.9708711]
[1768840621270,1.95790335,133.97,133.94,3.0008711]
[1768840621875,1.95790335,133.97,133.92,26.13468782]
[1768840622050,1.95790335,133.97,133.94,3.0008711]
[1768840622381,1.95790335,133.97,133.94,1.7512087]
[1768840622550,1.95790335,133.97,133.94,4.7520798]
[1768840624761,1.95790335,133.97,133.94,12.18799077]
[1768840629345,1.95790335,133.97,133.94,9.18711967]
[1768840629551,1.95790335,133.97,133.94,12.18799077]
[1768840633988,1.95790335,133.97,133.95,1.7512087]
[1768840634189,1.95790335,133.97,133.95,4.7220798]
[1768840634484,1.95790335,133.97,133.95,3.0008711]
[1768840636290,0.268364,133.97,133.96,1.7512087]
[1768840636592,0.268364,133.97,133.95,10.46610923]
[1768840637081,23.20147666,134.11,134.02,1.7512087]
[1768840637286,23.20147666,134.11,134.08,1.7512087]
[1768840637464,7.45612524,134.12,134.08,1.7512087]
[1768840637665,10.45699634,134.12,134.08,1.7512087]
[1768840638267,7.45612524,134.12,134.08,1.7512087]
[1768840638467,16.36,134.11,134.08,9.20939334]
[1768840638674,16.36,134.11,134.08,1.7512087]
[1768840639187,16.89453592,134.11,134.08,1.7512087]
[1768840639379,16.89453592,134.11,134.07,16.10432836]
[1768840639785,24.3511977,134.11,134.07,16.10432836]
[1768840639976,27.3520688,134.11,134.07,13.10345726]
[1768840640492,0.53454743,134.1,134.07,13.10345726]
[1768840640680,3.53541853,134.1,134.07,3.89362045]
[1768840640994,3.0008711,134.08,134.04,1.7512087]
[1768840641298,19.3408711,134.07,134.04,1.7512087]
[1768840643074,15.4476704,134.07,134.04,1.7512087]
[1768840643691,3.0008711,134.06,134.03,1.83091917]
[1768840643874,3.0008711,134.06,134.03,9.29193408]
[1768840644073,16.34,134.05,134.03,9.29193408]
[1768840646066,3.0008711,134.06,134.03,9.29193408]
[1768840646267,16.34,134.04,134.03,9.29193408]
[1768840650389,16.34,134.04,134.03,1.83091917]
[1768840650693,16.34,134.04,134.02,7.46144955]
[1768840650694,16.34,134.04,134.02,1.83091917]
[1768840651373,16.34,134.03,134.02,1.83091917]
[1768840651782,3.0008711,134.04,134.03,3.88919722]
[1768840651990,19.3408711,134.04,134.03,3.88919722]
[1768840652493,16.34,134.04,134.03,3.88919722]
[1768840655098,19.3408711,134.04,134.0,9.29352616]
[1768840655390,3.0008711,134.02,133.99,1.83091917]
[1768840655597,19.3408711,134.01,133.99,1.83091917]
[1768840656173,7.45934656,134.06,134.0,1.83091917]
[1768840656370,7.45823389,134.08,134.03,1.83091917]
[1768840656683,19.3408711,134.07,134.03,1.83091917]
[1768840656886,19.33316412,134.07,134.03,1.83091917]
[1768840657079,26.79200232,134.07,134.03,1.83091917]
[1768840657403,26.79200232,134.07,134.04,1.83091917]
[1768840657696,2.99316412,134.06,134.04,1.83091917]
[1768840657890,26.79200232,134.07,134.04,1.83091917]
[1768840658792,23.7988382,134.07,134.04,1.83091917]
[1768840658991,63.38242085,134.11,134.04,1.83091917]
[1768840659191,2.99316412,134.08,134.04,1.83091917]
[1768840659493,16.34,134.07,134.04,4.82408329]
[1768840659793,16.34,134.07,134.03,7.46097895]
[1768840659794,2.99316412,134.05,134.01,1.83091917]
[1768840660095,2.99316412,134.03,133.99,1.71535038]
[1768840660287,2.99316412,134.05,134.01,1.71535038]
[1768840660591,16.34,134.04,134.02,2.99316412]
[1768840660797,16.34,134.04,133.99,26.12118355]
[1768840660973,16.34,134.04,134.02,1.71535038]
[1768840662305,23.80051374,134.04,134.02,1.71535038]
[1768840662482,23.80051374,134.04,134.01,1.71535038]
[1768840662895,16.34,134.04,134.01,5.2085145]
[1768840663097,16.34,134.04,134.02,1.71535038]
[1768840665705,16.34,134.03,134.02,1.71535038]
[1768840669705,16.34,134.03,134.01,2.21535038]
[1768840670508,7.46061614,134.04,134.01,2.21535038]
[1768840670696,16.34,134.02,134.01,2.21535038]
[1768840673613,16.34,134.02,134.01,0.5]
[1768840674009,10.45378026,134.04,134.01,0.5]
[1768840674319,16.34,134.02,134.01,2.18847436]
[1768840675017,16.34,134.02,134.01,0.5]
[1768840675697,16.34,134.02,134.01,1.68847436]
[1768840680425,10.45263089,134.06,134.02,1.68847436]
[1768840680610,16.34,134.05,134.02,4.68163848]
[1768840681211,16.34,134.04,134.02,4.68163848]
[1768840681610,16.34,134.04,134.02,1.68847436]
[1768840682722,10.45263089,134.06,134.02,1.68847436]
[1768840682921,23.80007367,134.05,134.02,1.68847436]
[1768840683404,7.46007367,134.05,134.02,1.68847436]
[1768840683601,16.34,134.04,134.02,1.68847436]
[1768840686126,16.34,134.04,134.02,4.68163848]
[1768840686627,16.34,134.04,134.02,1.68847436]
[1768840687926,7.46007367,134.05,134.02,1.68847436]
[1768840688126,16.34,134.04,134.02,1.68847436]
[1768840690125,7.45934656,134.06,134.02,1.68847436]
[1768840690316,16.34,134.05,134.02,1.68847436]
[1768840690516,16.34,134.05,134.02,4.68163848]
[1768840691327,16.34,134.04,134.02,4.68163848]
[1768840691716,16.34,134.04,134.02,1.68847436]
[1768840692928,7.46011383,134.05,134.02,1.68847436]
[1768840693128,16.34,134.04,134.02,1.68847436]
[1768840693630,7.46011383,134.05,134.02,1.68847436]
[1768840693832,16.34,134.04,134.02,1.68847436]
[1768840694023,7.46011383,134.05,134.02,1.68847436]
[1768840694224,16.34,134.04,134.02,1.68847436]
[1768840695332,7.46011383,134.05,134.02,1.68847436]
[1768840695531,16.34,134.04,134.02,1.68847436]
[1768840697435,21.63940877,134.08,134.03,4.68163848]
[1768840697609,16.34,134.07,134.03,4.68163848]
[1768840698732,85.28985402,134.1,134.05,1.68847436]
[1768840699038,23.79767767,134.09,134.05,4.68163848]
[1768840699446,23.79767767,134.09,134.06,1.68847436]
[1768840700131,23.79767767,134.09,134.05,4.68163848]
[1768840700833,7.45767767,134.09,134.06,4.68163848]
[1768840701039,16.34,134.08,134.06,4.68163848]
[1768840701740,16.34,134.08,134.06,1.68847436]
[1768840701933,7.45767767,134.09,134.06,1.68847436]
[1768840702131,16.34,134.08,134.06,1.68847436]
[1768840703141,7.45767767,134.09,134.06,1.68847436]
[1768840703328,16.34,134.07,134.06,1.68847436]
[1768840705021,16.34,134.07,134.05,1.74125559]
[1768840705222,16.34,134.07,134.04,4.73441971]
[1768840705733,16.34,134.07,134.04,12.19483385]
[1768840705938,16.34,134.07,134.05,1.74125559]
[1768840706440,16.34,134.07,134.05,2.24125559]
[1768840706827,23.79880357,134.07,134.05,2.24125559]
[1768840707028,23.79880357,134.07,134.05,1.74125559]
[1768840707539,26.79196769,134.07,134.03,1.74125559]
[1768840707740,2.99316412,134.06,134.03,1.74125559]
[1768840708816,26.10577903,134.07,134.0,1.74125559]
[1768840709016,7.45990302,134.05,134.01,4.73441971]
[1768840709221,16.34,134.04,134.01,4.73441971]
[1768840709421,7.45990302,134.05,134.01,4.73441971]
[1768840709622,16.34,134.03,134.01,4.73441971]
[1768840710022,16.34,134.03,134.01,1.74125559]
[1768840712845,16.34,134.03,134.01,9.20330673]
[1768840713044,16.34,134.03,134.01,1.74125559]
[1768840713246,10.45312733,134.05,134.01,1.74125559]
[1768840713719,16.34,134.04,134.01,1.74125559]
[1768840714250,10.45312733,134.05,134.01,1.74125559]
[1768840714463,16.34,134.04,134.01,1.74125559]
[1768840714746,16.34,134.04,134.01,9.2033703]
[1768840714947,19.33316412,134.04,134.01,9.2033703]
[1768840716957,19.33423937,134.04,134.01,9.2033703]
[1768840717143,16.34,134.04,134.01,9.2033703]
[1768840717333,19.33423937,134.04,134.01,9.2033703]
[1768840718148,16.34,134.04,134.01,9.2033703]
[1768840719837,19.33423937,134.04,134.01,9.2033703]
[1768840720035,3.88914249,134.12,134.05,1.74125559]
[1768840720244,16.34,134.13,134.11,1.74125559]
[1768840720452,16.34,134.14,134.11,1.74125559]
[1768840720835,1.6255683,134.13,134.1,9.10645427]
[1768840721526,4.61980767,134.13,134.1,9.10645427]
[1768840721747,1.6255683,134.13,134.1,9.10645427]
[1768840723346,1.6255683,134.13,134.1,12.10069364]
[1768840723728,17.9655683,134.13,134.1,12.10069364]
[1768840727559,17.9655683,134.13,134.1,2.99423937]
[1768840727759,17.9655683,134.13,134.09,9.106937]
[1768840727948,17.9655683,134.13,134.1,2.99423937]
[1768840728149,25.42108486,134.13,134.1,3.49423937]
[1768840729482,1.6255683,134.12,134.1,0.5]
[1768840729642,1.6255683,134.12,134.09,4.64357209]
[1768840730344,1.6255683,134.12,134.09,1.64933272]
[1768840730663,1.6255683,134.12,134.09,4.64357209]
[1768840734867,1.6255683,134.12,134.07,12.09215556]
[1768840734868,1.68978075,134.11,134.07,12.09215556]
[1768840735367,1.68978075,134.11,134.08,0.5]
[1768840735859,1.68978075,134.11,134.07,4.63357413]
[1768840736067,9.14641626,134.11,134.07,4.63357413]
[1768840737963,25.48641626,134.11,134.07,4.63357413]
[1768840741370,28.48065563,134.11,134.07,4.63357413]
[1768840742773,28.48065563,134.11,134.07,1.63933476]
[1768840742947,28.48065563,134.11,134.07,4.63357413]
[1768840743547,28.48065563,134.11,134.07,1.63933476]
[1768840747755,28.48065563,134.11,134.07,1.63933476]
[1768840748366,1.68978075,134.09,134.06,12.09289424]
[1768840748673,7.45730804,134.1,134.07,1.63933476]
[1768840751870,1.68959026,134.11,134.08,1.63933476]
[1768840752076,27.78661212,134.12,134.09,1.63933476]
[1768840752270,44.12661212,134.12,134.09,1.63933476]
[1768840752465,1.68959026,134.11,134.09,1.63933476]
[1768840753288,12.14094088,134.11,134.08,1.63933476]
[1768840754658,1.68844528,134.09,134.06,1.63933476]
[1768840754858,21.02268465,134.09,134.06,1.63933476]
[1768840755283,18.02844528,134.09,134.06,1.63933476]
[1768840755482,21.02268465,134.09,134.06,1.63933476]
[1768840755878,23.79808469,134.09,134.06,1.63933476]
[1768840756188,25.48541114,134.09,134.06,1.63933476]
[1768840759501,28.47965051,134.09,134.06,1.63933476]
[1768840765995,25.48541114,134.09,134.06,1.63933476]
[1768840766175,28.47965051,134.09,134.06,1.63933476]
[1768840767024,12.13965051,134.09,134.06,1.63933476]
[1768840768777,1.6806515,134.08,134.04,12.14538714]
[1768840769093,1.6806515,134.08,134.05,1.69081465]
[1768840769501,10.45232406,134.09,134.05,1.69081465]
[1768840769674,12.13250243,134.09,134.05,1.69081465]
[1768840770180,1.67971068,134.07,134.05,1.69081465]
[1768840771100,28.47223794,134.08,134.05,1.69081465]
[1768840771797,1.67924836,134.07,134.03,1.69081465]
[1768840771998,23.79875021,134.08,134.03,1.69081465]
[1768840771999,4.67348773,134.06,134.03,1.69081465]
[1768840774116,4.67348773,134.06,134.01,14.42722908]
[1768840774117,10.45401365,134.06,134.01,14.42722908]
[1768840774284,1.67789301,134.04,134.01,1.69081465]
[1768840774599,4.67213238,134.04,134.01,1.69081465]
[1768840774796,1.67789301,134.02,133.99,1.69081465]
[1768840775001,2.99423937,134.01,133.99,1.69081465]
[1768840775304,1.67789301,134.02,133.99,1.69081465]
[1768840776391,28.47275546,134.03,133.99,1.69081465]
[1768840776706,2.99423937,134.02,133.99,1.69081465]
[1768840776891,25.47851609,134.03,133.99,1.69081465]
[1768840777095,28.47275546,134.03,133.99,1.69081465]
[1768840778301,1.67615742,134.06,134.02,1.69081465]
[1768840778506,4.67039679,134.06,134.02,1.69081465]
[1768840778897,4.66968545,134.06,134.02,1.69081465]
[1768840779508,12.12941037,134.06,134.02,1.69081465]
[1768840781411,9.13447232,134.05,134.02,1.69081465]
[1768840785611,7.45997211,134.05,134.03,1.6053562]
[1768840786816,1.67253354,134.04,134.01,1.6053562]
[1768840787111,4.66606157,134.04,134.01,1.6053562]
[1768840789414,4.16606157,134.04,134.01,1.6053562]
[1768840791616,1.17067725,134.02,133.98,4.59888423]
[1768840791819,1.17067725,134.02,133.99,1.6053562]
[1768840792189,4.16384672,134.03,133.99,1.6053562]
[1768840793519,11.62504008,134.03,133.99,1.6053562]
[1768840794420,11.62504008,134.03,133.99,9.06857802]
[1768840794600,11.62504008,134.03,134.0,1.70764104]
[1768840795220,1.17031869,134.03,134.0,1.70764104]
[1768840795521,4.16384672,134.03,134.0,1.70764104]
[1768840796418,11.62493732,134.03,134.0,1.70764104]
[1768840796615,11.62493732,134.03,133.97,18.66043349]
[1768840796616,4.16245392,134.01,133.97,1.70764104]
[1768840796918,2.99352803,134.0,133.97,1.70764104]
[1768840797606,1.16892589,134.01,133.98,1.70764104]
[1768840797810,2.99352803,134.0,133.98,1.70764104]
[1768840801922,2.99352803,133.99,133.97,9.17170418]
[1768840803317,4.16131851,133.99,133.96,9.17255593]
[1768840803513,2.99352803,133.99,133.96,9.17255593]
[1768840804329,2.99352803,133.99,133.97,9.17183863]
[1768840805231,2.99352803,134.0,133.97,9.17183863]
[1768840805809,1.16748258,134.01,133.97,9.17183863]
[1768840806014,2.99352803,134.0,133.97,9.17183863]
[1768840806417,4.16085931,134.0,133.97,9.17183863]
[1768840806616,2.99352803,133.99,133.97,9.17183863]
[1768840808433,4.16085931,134.0,133.97,9.17183863]
[1768840810134,2.99352803,133.99,133.97,9.17183863]
[1768840811232,4.16085931,134.0,133.97,9.17183863]
[1768840812232,2.99352803,134.02,133.98,1.70764104]
[1768840812531,8.62768605,134.03,133.98,1.70764104]
[1768840812532,11.62121408,134.03,133.98,1.70764104]
[1768840813635,11.62121408,134.03,133.99,1.70764104]
[1768840815429,34.99065541,134.05,134.01,1.70764104]
[1768840815430,8.62594847,134.05,134.01,1.70764104]
[1768840815614,11.6194765,134.05,134.01,1.70764104]
[1768840816631,2.99352803,134.04,134.01,1.70764104]
[1768840820828,2.99352803,134.03,134.01,1.70764104]
[1768840821413,11.6193899,134.04,134.01,1.70764104]
[1768840825842,8.62483522,134.05,134.01,1.70764104]
[1768840826030,11.61836325,134.05,134.02,1.69530837]
[1768840826229,11.61836325,134.05,134.02,1.66530837]
[1768840830341,10.45427106,134.04,134.02,1.66530837]
[1768840830541,11.64833602,134.04,134.01,1.69530837]
[1768840830745,4.18759299,134.03,134.0,1.69530837]
[1768840830917,2.99352803,134.02,134.0,1.69530837]
[1768840831319,4.18748094,134.02,133.98,1.69530837]
[1768840831628,4.18748094,134.01,133.98,1.69530837]
[1768840832754,1.19395291,134.01,133.98,1.69530837]
[1768840835749,11.64966292,134.01,133.98,1.69530837]
[1768840837542,2.99352803,134.0,133.98,1.69530837]
[1768840837742,11.64966292,134.01,133.98,1.69530837]
[1768840837960,2.99352803,134.0,133.98,1.69530837]
[1768840838254,11.64966292,134.01,133.98,1.69530837]
[1768840838848,8.65613489,134.01,133.98,1.69530837]
[1768840839047,11.65192424,134.01,133.98,1.69530837]
[1768840842557,4.18842804,134.0,133.97,1.64459754]
[1768840844355,7.46304858,134.0,133.97,1.64459754]
[1768840844654,10.45883793,134.0,133.97,1.64459754]
[1768840846736,10.45883793,134.0,133.96,7.46485548]
[1768840846737,11.6510775,134.0,133.96,9.10945302]
[1768840846957,11.6510775,134.0,133.97,1.64459754]
[1768840847452,1.19214264,133.99,133.96,1.64459754]
[1768840847758,4.18793199,133.99,133.96,1.64459754]
[1768840848857,2.99578935,133.99,133.96,1.64459754]
[1768840849652,10.45913338,133.99,133.96,1.64459754]
[1768840850858,7.46334403,133.99,133.96,1.64459754]
[1768840851160,11.65080412,134.0,133.96,1.64459754]
[1768840856742,8.65501477,134.0,133.96,7.46489284]
[1768840856964,11.65080412,134.0,133.97,1.68445461]
[1768840857564,1.63658741,134.04,133.99,2.99578935]
[1768840857758,66.64648276,134.09,133.98,16.34]
[1768840857759,4.63237676,134.03,133.98,16.34]
[1768840857955,1.63658741,134.02,133.98,19.33578935]
[1768840858769,9.09842618,134.02,133.98,19.33578935]
[1768840858969,1.63658741,134.01,133.98,16.34]
[1768840859151,1.63658741,134.01,133.98,16.31]
[1768840859579,18.65157338,134.04,133.98,17.9464324]
[1768840859782,2.99578935,134.01,133.98,17.9464324]
[1768840860149,2.99578935,133.99,133.98,16.31]
[1768840860349,2.99578935,133.99,133.95,25.64150044]
[1768840861376,10.45908237,133.99,133.95,25.64150044]
[1768840861556,12.09566978,133.99,133.95,25.64150044]
[1768840862879,1.63658741,133.98,133.95,18.17634995]
[1768840863079,1.63658741,133.98,133.95,0.2]
[1768840863270,4.63237676,133.96,133.95,0.2]
[1768840863574,1.63658741,133.96,133.95,0.2]
[1768840864768,9.10101978,133.97,133.95,0.2]
[1768840865270,1.63658741,133.96,133.95,0.2]
[1768840869486,7.46396675,133.98,133.95,1.822751]
[1768840869678,1.63658741,133.98,133.95,1.822751]
[1768840870160,12.09586747,133.99,133.95,1.822751]
[1768840871266,1.63658741,133.98,133.95,1.822751]
[1768840871691,9.10058198,133.98,133.95,1.822751]
[1768840872684,2.99578935,133.99,133.96,4.61401118]
[1768840872685,1.63658741,133.99,133.96,4.61401118]
[1768840872877,4.63237676,134.0,133.96,1.61822183]
[1768840873588,12.09517347,134.0,133.96,1.61822183]
[1768840875804,10.45858606,134.0,133.96,1.61822183]
[1768840877993,7.46279671,134.0,133.96,1.61822183]